bitfinex/quotes_SOLUSD_20220104
["timestamp","ask_amount","ask_price","bid_price","bid_amount"]
[1641278492548,2.88878785,167.97,167.85,87.771]
[1641278493850,3.14878785,167.97,167.85,87.771]
[1641278497450,3.14878785,167.97,167.85,89.19769368]
[1641278498054,1.3322,167.96,167.85,89.19769368]
[1641278498452,1.5922,167.96,167.85,89.19769368]
[1641278500857,1.5922,167.96,167.85,36.19769368]
[1641278501057,1.5922,167.96,167.85,34.771]
[1641278501257,1.3322,167.96,167.85,34.771]
[1641278502659,1.5922,167.96,167.85,34.771]
[1641278508392,1.3322,167.96,167.85,34.771]
[1641278508792,1.3322,167.96,167.85,36.19769368]
[1641278511295,1.3322,167.96,167.85,34.771]
[1641278512899,1.3322,167.96,167.85,36.19769368]
[1641278516703,2.88878785,167.97,167.85,36.19769368]
[1641278521905,1.2642,167.96,167.85,36.19769368]
[1641278526616,1.2642,167.96,167.85,35.93769368]
[1641278526817,1.2642,167.96,167.85,34.511]
[1641278527619,1.2642,167.96,167.85,35.93769368]
[1641278528019,1.2642,167.96,167.85,36.19769368]
[1641278531923,1.2642,167.96,167.85,35.69769368]
[1641278533224,1.2642,167.96,167.85,36.19769368]
[1641278535044,1.2642,167.96,167.85,35.93769368]
[1641278535248,1.5242,167.96,167.85,34.511]
[1641278535446,25.1263,167.96,167.85,34.511]
[1641278536447,24.8663,167.96,167.85,34.511]
[1641278536747,25.1263,167.96,167.85,9.06]
[1641278537951,25.1263,167.96,167.85,9.32]
[1641278538150,25.1263,167.96,167.85,8.82]
[1641278539451,25.1263,167.96,167.85,9.06]
[1641278540853,25.6263,167.96,167.85,9.32]
[1641278541954,25.1263,167.96,167.85,9.32]
[1641278542453,25.6263,167.96,167.85,9.32]
[1641278548658,25.1263,167.96,167.85,9.32]
[1641278550161,25.1263,167.96,167.85,9.06]
[1641278550362,25.6263,167.96,167.85,9.06]
[1641278551560,25.6263,167.96,167.85,9.32]
[1641278551762,25.6263,167.96,167.85,9.06]
[1641278552867,25.6263,167.96,167.85,0.5]
[1641278553064,25.1263,167.96,167.84,2.0835]
[1641278553262,25.1263,167.96,167.84,1.5835]
[1641278553462,25.1263,167.96,167.84,2.0835]
[1641278553662,25.1263,167.96,167.84,10.6435]
[1641278554263,25.1263,167.96,167.85,23.0782]
[1641278554463,25.1263,167.96,167.85,23.8382]
[1641278555566,25.1263,167.96,167.86,1.322]
[1641278555964,25.1263,167.96,167.86,2.082]
[1641278559968,25.1263,167.96,167.86,0.5]
[1641278560193,25.1263,167.96,167.85,0.5]
[1641278560373,34.1863,167.96,167.82,28.49378886]
[1641278561369,34.1863,167.96,167.82,28.75378886]
[1641278561571,34.1863,167.96,167.83,23.3318]
[1641278561970,34.1863,167.96,167.83,24.0918]
[1641278562371,34.1863,167.96,167.83,23.8318]
[1641278563274,34.1863,167.96,167.83,25.1347]
[1641278563471,34.1863,167.96,167.78,11.88820542]
[1641278563472,35.61299368,167.96,167.78,10.46151174]
[1641278563671,152.74259629,167.96,167.77,0.02]
[1641278563875,24.924,167.95,167.77,0.02]
[1641278564075,10.74564041,167.94,167.77,0.02]
[1641278564273,12.17233409,167.94,167.75,8.56]
[1641278564474,12.93233409,167.94,167.75,34.36667676]
[1641278564773,25.76089368,167.93,167.76,23.6184]
[1641278564972,8.56,167.92,167.76,23.8784]
[1641278565173,2.76945561,167.91,167.76,24.3784]
[1641278565374,11.82945561,167.91,167.76,24.3784]
[1641278565575,12.08945561,167.91,167.76,24.3784]
[1641278565974,25.782,167.9,167.76,24.3784]
[1641278566175,8.56,167.89,167.76,24.3784]
[1641278566374,2.5507004,167.88,167.76,25.6987]
[1641278566775,3.3107004,167.88,167.76,25.6987]
[1641278566975,1.2947,167.87,167.76,25.6987]
[1641278567378,2.0547,167.87,167.76,25.6987]
[1641278569704,2.0547,167.87,167.76,25.4387]
[1641278571006,2.0547,167.87,167.76,25.6987]
[1641278575607,2.0547,167.87,167.76,25.4387]
[1641278576811,2.0547,167.87,167.76,25.6987]
[1641278577012,1.7947,167.87,167.76,25.6987]
[1641278577611,1.2947,167.87,167.76,25.6987]
[1641278578513,1.5547,167.87,167.76,25.6987]
[1641278583316,1.2947,167.87,167.76,25.6987]
[1641278583519,24.4805,167.9,167.77,9.98669368]
[1641278583718,25.8354,167.9,167.78,23.9248]
[1641278583919,25.8354,167.9,167.79,8.56]
[1641278584120,25.8354,167.9,167.8,25.9397]
[1641278584317,2.65529598,167.89,167.8,34.4997]
[1641278584518,2.65529598,167.89,167.8,35.2597]
[1641278585018,2.91529598,167.89,167.8,35.2597]
[1641278585219,0.26,167.89,167.8,35.2597]
[1641278585618,1.6149,167.9,167.8,35.2597]
[1641278586421,3.86343762,167.9,167.8,35.2597]
[1641278587921,1.6149,167.9,167.8,35.2597]
[1641278588120,1.3549,167.9,167.8,35.2597]
[1641278588321,49.1607,167.95,167.8,35.2597]
[1641278588522,1.2822,167.94,167.8,35.2597]
[1641278588923,2.89352977,167.93,167.8,35.2597]
[1641278589324,3.15352977,167.93,167.8,35.2597]
[1641278590330,1.312,167.92,167.8,35.2597]
[1641278593330,49.1607,167.95,167.8,35.2597]
[1641278593530,49.1607,167.95,167.8,43.50439368]
[1641278593531,25.5378,167.95,167.8,43.50439368]
[1641278593728,109.9219,168.01,167.8,43.50439368]
[1641278593729,8.56,168.01,167.8,43.50439368]
[1641278593953,24.3573,168.0,167.8,43.50439368]
[1641278594156,24.3573,168.0,167.8,43.24439368]
[1641278594355,24.8573,168.0,167.8,43.24439368]
[1641278594555,2.48777326,167.99,167.8,43.24439368]
[1641278594954,3.24777326,167.99,167.8,43.24439368]
[1641278595155,23.5799,167.98,167.8,43.24439368]
[1641278595356,23.5799,167.98,167.8,43.50439368]
[1641278595554,23.8399,167.98,167.8,43.50439368]
[1641278595756,25.1314,167.98,167.8,43.50439368]
[1641278595954,24.8714,167.98,167.8,43.50439368]
[1641278596155,24.8714,167.98,167.8,52.70170542]
[1641278597357,25.1314,167.98,167.8,52.70170542]
[1641278600162,25.1314,167.98,167.8,45.88370542]
[1641278602062,24.8714,167.98,167.8,45.88370542]
[1641278602261,23.0991,168.01,167.86,27.03377837]
[1641278602462,10.4984,168.04,167.87,31.7085]
[1641278602662,1.3554,168.04,167.87,33.13519368]
[1641278602862,1.3554,168.04,167.87,33.89519368]
[1641278603063,1.3554,168.04,167.88,1.42669368]
[1641278603263,2.59370938,168.03,167.89,112.4499]
[1641278603466,2.59370938,168.03,167.89,113.2099]
[1641278603664,2.59370938,168.03,167.9,1.42669368]
[1641278603864,2.59370938,168.03,167.91,8.56]
[1641278604066,2.59370938,168.03,167.93,27.46936538]
[1641278604266,2.59370938,168.03,167.94,8.56]
[1641278604468,2.59370938,168.03,167.94,9.32]
[1641278606769,2.85370938,168.03,167.94,9.32]
[1641278610273,2.59370938,168.03,167.94,9.32]
[1641278612177,2.85370938,168.03,167.94,9.32]
[1641278612978,2.59370938,168.03,167.94,9.32]
[1641278614781,2.59370938,168.03,167.94,33.6903]
[1641278617480,2.59370938,168.03,167.94,35.11699368]
[1641278625489,2.85370938,168.03,167.94,33.4303]
[1641278625889,3.35370938,168.03,167.94,9.06]
[1641278626088,3.09370938,168.03,167.94,0.5]
[1641278626288,3.35370938,168.03,167.94,0.5]
[1641278626497,3.35370938,168.03,167.93,27.96936538]
[1641278626689,2.85370938,168.03,167.93,27.96936538]
[1641278626890,2.59370938,168.03,167.93,28.22936538]
[1641278628292,3.35370938,168.03,167.93,28.22936538]
[1641278628895,3.09370938,168.03,167.93,28.22936538]
[1641278629292,2.59370938,168.03,167.93,28.22936538]
[1641278629591,2.59370938,168.03,167.94,22.5747]
[1641278629994,2.59370938,168.03,167.94,23.3347]
[1641278630394,2.85370938,168.03,167.94,23.3347]
[1641278630995,2.85370938,168.03,167.94,0.76]
[1641278631192,2.85370938,168.03,167.93,28.22936538]
[1641278636430,4.19180938,168.03,167.93,28.22936538]
[1641278637429,4.19180938,168.03,167.89,87.9079]
[1641278637637,23.508,168.02,167.86,1.3723]
[1641278637830,8.56,168.01,167.85,24.3094]
[1641278638029,27.09252742,168.0,167.85,24.3094]
[1641278638429,27.85252742,168.0,167.84,31.43494808]
[1641278638630,8.56,167.99,167.84,22.87494808]
[1641278638830,10.3833,167.99,167.84,23.37494808]
[1641278639031,10.6433,167.99,167.84,23.37494808]
[1641278639230,2.70876432,167.97,167.84,23.37494808]
[1641278639431,24.3044,167.96,167.84,23.37494808]
[1641278639929,25.0644,167.96,167.84,25.06164176]
[1641278640134,1.2879,167.95,167.85,24.1563]
[1641278640330,1.2879,167.95,167.85,24.6563]
[1641278640530,1.5479,167.95,167.85,24.9163]
[1641278641733,1.2879,167.95,167.85,24.9163]
[1641278642536,1.2879,167.95,167.85,26.22]
[1641278643140,1.5479,167.95,167.85,26.22]
[1641278643836,1.5479,167.95,167.85,27.64669368]
[1641278644037,1.2879,167.95,167.85,27.64669368]
[1641278644439,2.70876432,167.97,167.86,8.56]
[1641278644638,2.70876432,167.97,167.87,24.541]
[1641278644840,2.70876432,167.97,167.87,35.02769368]
[1641278645037,2.70876432,167.97,167.88,1.42669368]
[1641278645244,2.70876432,167.97,167.88,9.98669368]
[1641278645440,2.70876432,167.97,167.88,11.99519368]
[1641278645643,2.70876432,167.97,167.89,1.42669368]
[1641278645840,1.3595,168.01,167.89,1.92669368]
[1641278646041,1.3595,168.01,167.89,24.98129368]
[1641278646646,1.3595,168.01,167.89,26.27809368]
[1641278647148,2.71557999,168.0,167.91,26.50775916]
[1641278647348,2.71557999,168.0,167.92,23.157]
[1641278647549,2.71557999,168.0,167.92,23.417]
[1641278647850,2.71557999,168.0,167.92,23.917]
[1641278649147,2.71557999,168.0,167.93,1.42669368]
[1641278649347,1.3595,168.01,167.93,1.92669368]
[1641278649549,1.2958,168.02,167.93,2.18669368]
[1641278649949,24.1607,168.03,167.93,2.18669368]
[1641278650148,24.1607,168.03,167.94,1.42669368]
[1641278650352,27.10543288,168.03,167.94,1.42669368]
[1641278650552,27.10543288,168.03,167.94,2.18669368]
[1641278650753,27.10543288,168.03,167.94,26.74369368]
[1641278652054,27.10543288,168.03,167.94,25.317]
[1641278652257,27.10543288,168.03,167.94,25.057]
[1641278652454,27.10543288,168.03,167.94,0.5]
[1641278652860,27.10543288,168.03,167.93,9.06]
[1641278653059,27.36543288,168.03,167.93,9.06]
[1641278653259,27.36543288,168.03,167.93,8.56]
[1641278653461,27.36543288,168.03,167.93,8.82]
[1641278653859,27.36543288,168.03,167.93,8.56]
[1641278654484,27.36543288,168.03,167.93,9.06]
[1641278655884,27.36543288,168.03,167.93,9.32]
[1641278656685,27.10543288,168.03,167.93,9.32]
[1641278656885,27.10543288,168.03,167.94,23.8403]
[1641278657086,27.10543288,168.03,167.94,24.1003]
[1641278657285,27.10543288,168.03,167.94,24.6003]
[1641278657486,27.10543288,168.03,167.94,25.8409]
[1641278663698,27.10543288,168.03,167.94,27.26759368]
[1641278668108,28.45673288,168.03,167.94,27.26759368]
[1641278669209,28.45673288,168.03,167.94,35.82759368]
[1641278670815,28.45673288,168.03,167.94,34.4009]
[1641278672314,25.512,168.03,167.94,34.4009]
[1641278673318,27.78466867,168.03,167.94,34.4009]
[1641278673920,27.78466867,168.03,167.94,35.82759368]
[1641278674118,27.78466867,168.03,167.94,41.49559368]
[1641278676120,27.78466867,168.03,167.94,35.82759368]
[1641278676519,27.78466867,168.03,167.94,35.56759368]
[1641278676719,27.78466867,168.03,167.94,34.1409]
[1641278678120,27.78466867,168.03,167.94,34.4009]
[1641278681223,27.78466867,168.03,167.94,34.1409]
[1641278682525,27.78466867,168.03,167.94,34.4009]
[1641278684630,28.04466867,168.03,167.94,25.8409]
[1641278684928,27.78466867,168.03,167.94,25.8409]
[1641278685130,28.04466867,168.03,167.94,25.8409]
[1641278686031,27.78466867,168.03,167.94,25.8409]
[1641278686631,28.04466867,168.03,167.94,25.8409]
[1641278687032,28.04466867,168.03,167.94,24.6003]
[1641278687232,28.54466867,168.03,167.94,24.6003]
[1641278688535,28.54466867,168.03,167.94,0.76]
[1641278688734,28.54466867,168.03,167.91,37.09235916]
[1641278689335,28.54466867,168.03,167.92,23.7437]
[1641278689532,28.54466867,168.03,167.92,24.0037]
[1641278689732,28.28466867,168.03,167.92,24.5037]
[1641278689936,28.54466867,168.03,167.92,24.5037]
[1641278690535,28.28466867,168.03,167.92,25.873]
[1641278690734,27.78466867,168.03,167.92,25.873]
[1641278692135,25.512,168.03,167.92,25.873]
[1641278692336,25.512,168.03,167.92,35.85969368]
[1641278693842,73.4093,168.08,167.92,35.85969368]
[1641278694140,1.345,168.07,167.92,69.05840542]
[1641278694345,24.2445,168.12,167.94,107.0]
[1641278694542,1.3732,168.11,167.95,31.8226]
[1641278694741,3.56926855,168.11,167.95,33.24929368]
[1641278694941,3.56926855,168.11,167.95,34.00929368]
[1641278695143,3.56926855,168.11,167.96,1.3442]
[1641278695344,3.56926855,168.11,167.98,23.76604155]
[1641278695545,3.56926855,168.11,167.99,31.0972]
[1641278695946,3.56926855,168.11,167.99,33.28389368]
[1641278696146,3.56926855,168.11,168.0,1.3585]
[1641278696347,3.56926855,168.11,168.0,10.4185]
[1641278696544,3.56926855,168.11,168.0,10.6785]
[1641278699253,3.56926855,168.11,168.0,10.4185]
[1641278699454,3.82926855,168.11,168.0,10.4185]
[1641278701455,3.82926855,168.11,168.0,10.6785]
[1641278703074,3.82926855,168.11,168.0,10.4185]
[1641278703877,3.56926855,168.11,168.0,10.4185]
[1641278704476,3.56926855,168.11,168.0,10.6785]
[1641278704679,3.56926855,168.11,168.01,23.4205]
[1641278704877,3.56926855,168.11,168.01,23.9205]
[1641278705080,3.56926855,168.11,168.01,24.1805]
[1641278706685,3.56926855,168.11,168.02,1.329]
[1641278706887,3.82926855,168.11,168.02,1.829]
[1641278707086,3.82926855,168.11,168.02,2.089]
[1641278707684,3.82926855,168.11,168.02,0.76]
[1641278707889,3.82926855,168.11,168.02,0.26]
[1641278708084,3.82926855,168.11,168.0,9.32]
[1641278708985,4.06926855,168.11,168.0,9.32]
[1641278709187,3.82926855,168.11,168.0,9.32]
[1641278709388,3.82926855,168.11,168.01,24.9995]
[1641278709588,3.82926855,168.11,168.01,25.2595]
[1641278709787,3.82926855,168.11,168.01,25.7595]
[1641278710788,3.82926855,168.11,168.01,0.76]
[1641278711088,23.8742,168.1,168.01,0.5]
[1641278711290,32.4342,168.1,167.99,0.5]
[1641278711488,33.1942,168.1,167.98,0.5]
[1641278711687,33.1942,168.1,167.97,0.02]
[1641278711688,1.3126,168.09,167.97,0.02]
[1641278711892,8.56,168.08,167.97,0.02]
[1641278712087,8.82,168.08,167.97,0.02]
[1641278712288,9.32,168.08,167.94,1.3501]
[1641278712488,24.6919,168.07,167.95,24.77639686]
[1641278712690,33.2519,168.07,167.95,24.77639686]
[1641278712893,34.0119,168.07,167.95,25.27639686]
[1641278715194,34.0119,168.07,167.95,24.77639686]
[1641278720406,8.9333,168.06,167.95,24.77639686]
[1641278720606,11.42825641,168.05,167.95,24.77639686]
[1641278721007,12.18825641,168.05,167.95,24.77639686]
[1641278721619,12.18825641,168.05,167.95,25.03639686]
[1641278721824,11.68825641,168.05,167.95,25.53639686]
[1641278722419,12.18825641,168.05,167.95,25.53639686]
[1641278722820,3.36825641,168.05,167.95,25.53639686]
[1641278723019,11.92825641,168.05,167.95,25.53639686]
[1641278723720,11.92825641,168.05,167.95,25.27639686]
[1641278723920,11.92825641,168.05,167.95,25.53639686]
[1641278724924,11.42825641,168.05,167.95,25.53639686]
[1641278725423,3.12825641,168.05,167.95,25.53639686]
[1641278726322,12.18825641,168.05,167.95,25.27639686]
[1641278727522,3.12825641,168.05,167.95,25.53639686]
[1641278727724,11.68825641,168.05,167.95,25.53639686]
[1641278728022,3.12825641,168.05,167.95,25.53639686]
[1641278729024,3.12825641,168.05,167.95,26.85359686]
[1641278729525,3.12825641,168.05,167.95,26.59359686]
[1641278729728,12.18825641,168.05,167.95,25.27639686]
[1641278729928,12.18825641,168.05,167.95,25.53639686]
[1641278733131,12.18825641,168.05,167.95,25.27639686]
[1641278738637,12.18825641,168.05,167.95,25.53639686]
[1641278738837,11.68825641,168.05,167.95,25.53639686]
[1641278739237,11.68825641,168.05,167.96,1.279]
[1641278739437,11.68825641,168.05,167.96,1.779]
[1641278739639,11.68825641,168.05,167.96,2.039]
[1641278740839,11.68825641,168.05,167.96,26.9964]
[1641278741042,3.12825641,168.05,167.96,26.9964]
[1641278741339,3.62825641,168.05,167.96,0.26]
[1641278741539,3.62825641,168.05,167.95,24.77639686]
[1641278741540,3.62825641,168.05,167.95,25.03639686]
[1641278741740,3.62825641,168.05,167.95,25.53639686]
[1641278743340,12.18825641,168.05,167.95,25.53639686]
[1641278744343,11.68825641,168.05,167.95,25.53639686]
[1641278744543,2.86825641,168.05,167.95,25.53639686]
[1641278745146,2.86825641,168.05,167.96,1.2958]
[1641278745342,2.86825641,168.05,167.96,1.7958]
[1641278745545,2.86825641,168.05,167.96,2.0558]
[1641278745843,2.86825641,168.05,167.96,26.9969]
[1641278746045,3.12825641,168.05,167.96,26.9969]
[1641278755079,3.12825641,168.05,167.96,26.7369]
[1641278755481,3.62825641,168.05,167.96,26.7369]
[1641278756482,3.12825641,168.05,167.96,26.9969]
[1641278764895,3.62825641,168.05,167.96,26.9969]
[1641278765295,3.12825641,168.05,167.96,26.9969]
[1641278766697,3.62825641,168.05,167.96,26.9969]
[1641278770698,3.36825641,168.05,167.96,26.9969]
[1641278771298,2.86825641,168.05,167.96,26.9969]
[1641278772398,3.36825641,168.05,167.96,26.9969]
[1641278774699,3.36825641,168.05,167.96,26.7369]
[1641278775902,3.62825641,168.05,167.96,26.7369]
[1641278776102,3.62825641,168.05,167.96,26.9969]
[1641278778104,3.36825641,168.05,167.96,26.9969]
[1641278791748,3.36825641,168.05,167.96,35.5569]
[1641278791945,2.86825641,168.05,167.96,35.5569]
[1641278795652,2.86825641,168.05,167.96,35.2969]
[1641278797654,2.86825641,168.05,167.96,35.5569]
[1641278799857,2.86825641,168.05,167.96,35.2969]
[1641278800056,3.12825641,168.05,167.96,35.2969]
[1641278801260,3.12825641,168.05,167.96,35.5569]
[1641278802460,3.62825641,168.05,167.96,35.5569]
[1641278802660,3.62825641,168.05,167.96,26.4969]
[1641278803860,3.62825641,168.05,167.96,26.9969]
[1641278804260,3.62825641,168.05,167.96,26.2369]
[1641278804763,8.56,168.04,167.91,1.3142]
[1641278804961,9.06,168.04,167.91,2.5632]
[1641278805161,9.32,168.04,167.91,2.5632]
[1641278805562,26.1706,168.03,167.91,26.08449582]
[1641278805961,26.9306,168.03,167.91,26.58449582]
[1641278806563,26.9306,168.03,167.91,26.84449582]
[1641278807365,26.9306,168.03,167.92,23.0852]
[1641278807562,26.9306,168.03,167.92,23.3452]
[1641278809862,8.56,168.02,167.92,23.3452]
[1641278810064,8.82,168.02,167.92,23.3452]
[1641278810265,9.32,168.02,167.92,23.8452]
[1641278810464,9.32,168.02,167.92,23.3452]
[1641278811065,1.302,168.01,167.92,23.3452]
[1641278811465,2.062,168.01,167.92,23.3452]
[1641278811669,26.7034,168.01,167.92,23.3452]
[1641278812266,26.7034,168.01,167.92,23.8452]
[1641278813367,26.2034,168.01,167.92,23.8452]
[1641278813967,26.2034,168.01,167.92,23.3452]
[1641278814166,25.9434,168.01,167.92,25.1937]
[1641278815069,1.302,168.01,167.92,25.1937]
[1641278818171,24.795,168.03,167.92,25.1937]
[1641278818371,26.842,168.03,167.92,25.1937]
[1641278822479,26.842,168.03,167.92,23.6937]
[1641278826484,26.842,168.03,167.92,23.1937]
[1641278828687,26.842,168.03,167.92,24.62039368]
[1641278831712,26.842,168.03,167.92,23.1937]
[1641278836519,26.842,168.03,167.92,22.4337]
[1641278837116,35.402,168.03,167.92,22.4337]
[1641278837916,35.402,168.03,167.92,22.9337]
[1641278839318,35.402,168.03,167.92,23.1937]
[1641278841921,6.68929219,168.02,167.92,22.6937]
[1641278842223,15.24929219,168.02,167.86,22.9359]
[1641278842520,22.647,168.01,167.87,23.9357]
[1641278842721,2.21157362,167.99,167.87,23.9357]
[1641278842921,1.3054,167.98,167.87,23.9357]
[1641278843324,2.0654,167.98,167.87,23.9357]
[1641278844325,2.0654,167.98,167.87,24.1957]
[1641278845626,2.0654,167.98,167.87,0.26]
[1641278846027,2.0654,167.98,167.85,2.1337]
[1641278846431,2.0654,167.98,167.86,23.2909]
[1641278846830,2.0654,167.98,167.86,24.0509]
[1641278847030,2.0654,167.98,167.86,0.76]
[1641278847231,10.6254,167.98,167.86,0.5]
[1641278847431,10.6254,167.98,167.84,1.8018]
[1641278847631,10.6254,167.98,167.84,1.3018]
[1641278847931,10.6254,167.98,167.84,1.8018]
[1641278848132,22.6374,167.97,167.84,1.8018]
[1641278848337,23.1374,167.97,167.84,1.8018]
[1641278848534,23.3974,167.97,167.84,2.0618]
[1641278848732,23.3974,167.97,167.84,25.1312]
[1641278849560,23.1374,167.97,167.84,25.1312]
[1641278849959,1.2552,167.96,167.84,25.3912]
[1641278850461,1.7552,167.96,167.84,25.3912]
[1641278851061,1.7552,167.96,167.84,26.81789368]
[1641278852861,2.0152,167.96,167.84,26.81789368]
[1641278861676,2.0152,167.96,167.84,25.1312]
[1641278863277,2.0152,167.96,167.84,25.3912]
[1641278863682,10.5752,167.96,167.84,25.3912]
[1641278864078,24.1054,167.95,167.84,25.3912]
[1641278864578,24.8654,167.95,167.84,25.3912]
[1641278865179,24.6054,167.95,167.84,25.3912]
[1641278866081,2.37327502,167.93,167.84,25.3912]
[1641278866579,2.63327502,167.93,167.84,25.3912]
[1641278866779,3.13327502,167.93,167.84,25.3912]
[1641278866980,3.13327502,167.93,167.84,1.8018]
[1641278868180,1.3597,167.92,167.84,1.8018]
[1641278868381,1.8597,167.92,167.84,1.8018]
[1641278868581,2.1197,167.92,167.84,1.8018]
[1641278869185,2.1197,167.92,167.84,1.3018]
[1641278869381,2.1197,167.92,167.84,25.2941]
[1641278869581,2.1197,167.92,167.84,25.5541]
[1641278869784,2.1197,167.92,167.84,25.2941]
[1641278869982,2.1197,167.92,167.84,25.5541]
[1641278870183,0.26,167.92,167.84,25.5541]
[1641278870383,0.26,167.92,167.84,26.0541]
[1641278870584,2.63327502,167.93,167.84,26.0541]
[1641278874889,2.37327502,167.93,167.84,26.0541]
[1641278875515,2.63327502,167.93,167.84,26.0541]
[1641278878313,2.37327502,167.93,167.84,26.0541]
[1641278878514,2.63327502,167.93,167.84,26.0541]
[1641278879315,2.37327502,167.93,167.84,26.0541]
[1641278879514,2.63327502,167.93,167.84,26.0541]
[1641278880317,2.37327502,167.93,167.84,26.0541]
[1641278880515,2.63327502,167.93,167.84,26.0541]
[1641278881921,1.3452,167.94,167.84,26.0541]
[1641278882118,8.56,167.99,167.84,26.0541]
[1641278882319,34.3261,168.02,167.85,8.56]
[1641278882521,24.6065,168.01,167.85,8.82]
[1641278882719,24.6065,168.01,167.85,9.32]
[1641278882920,2.25214709,168.0,167.85,10.74669368]
[1641278883122,2.25214709,168.0,167.86,24.7242]
[1641278883321,2.75214709,168.0,167.86,25.2242]
[1641278883521,2.75214709,168.0,167.86,25.4842]
[1641278883721,2.25214709,168.0,167.87,1.2422]
[1641278883921,2.25214709,168.0,167.87,3.16889368]
[1641278884123,2.25214709,168.0,167.88,9.98669368]
[1641278884322,2.25214709,168.0,167.88,34.39289368]
[1641278884524,2.25214709,168.0,167.88,35.15289368]
[1641278885122,2.51214709,168.0,167.88,35.15289368]
[1641278885524,2.51214709,168.0,167.9,22.46675989]
[1641278885722,2.51214709,168.0,167.91,24.5402]
[1641278886022,2.51214709,168.0,167.91,25.3002]
[1641278886223,2.51214709,168.0,167.91,25.0402]
[1641278886621,3.01214709,168.0,167.91,25.0402]
[1641278886822,3.01214709,168.0,167.91,24.8002]
[1641278888124,3.01214709,168.0,167.85,84.2086]
[1641278888325,32.9966,167.99,167.85,85.5388]
[1641278888526,33.2566,167.99,167.85,86.0388]
[1641278888725,33.7566,167.99,167.85,86.0388]
[1641278888924,1.3233,167.98,167.85,86.0388]
[1641278889125,1.3233,167.98,167.86,29.29111264]
[1641278889326,2.0833,167.98,167.86,29.29111264]
[1641278889528,2.0833,167.98,167.86,52.56811264]
[1641278895334,2.0833,167.98,167.86,54.25480632]
[1641278895735,2.0833,167.98,167.87,1.3517]
[1641278895938,2.0833,167.98,167.87,1.8517]
[1641278896235,2.0833,167.98,167.87,2.1117]
[1641278896636,1.8233,167.98,167.87,2.1117]
[1641278898034,2.0833,167.98,167.87,2.1117]
[1641278898838,2.0833,167.98,167.88,24.0111]
[1641278899138,1.8233,167.98,167.88,24.2711]
[1641278899338,1.8233,167.98,167.88,24.7711]
[1641278900138,1.8233,167.98,167.89,1.3708]
[1641278900338,2.0833,167.98,167.89,1.8708]
[1641278900539,2.0833,167.98,167.89,2.1308]
[1641278902740,2.0833,167.98,167.89,1.8708]
[1641278908247,1.8233,167.98,167.89,1.8708]
[1641278909647,2.0833,167.98,167.89,1.8708]
[1641278920157,1.8233,167.98,167.89,1.8708]
[1641278921556,2.0833,167.98,167.89,1.8708]
[1641278921757,2.0833,167.98,167.89,0.5]
[1641278921958,2.0833,167.98,167.88,24.5111]
[1641278922156,2.0833,167.98,167.88,24.7711]
[1641278922357,2.0833,167.98,167.89,1.3096]
[1641278922758,2.0833,167.98,167.89,1.8096]
[1641278931084,2.0833,167.98,167.78,113.21448584]
[1641278931381,9.98669368,167.97,167.83,0.02]
[1641278931598,22.7572,167.96,167.83,0.02]
[1641278931794,8.56,167.95,167.83,0.02]
[1641278931994,2.53329726,167.94,167.83,0.02]
[1641278932194,8.56,167.93,167.78,49.86965806]
[1641278932395,24.8257,167.92,167.78,50.36965806]
[1641278932595,26.51239368,167.92,167.78,50.36965806]
[1641278932795,35.57239368,167.92,167.78,50.36965806]
[1641278933597,35.57239368,167.92,167.78,50.62965806]
[1641278934596,44.51309368,167.92,167.78,50.62965806]
[1641278935599,8.9413,167.91,167.78,22.6172]
[1641278935800,8.56,167.9,167.74,81.2267]
[1641278936001,32.9157,167.9,167.74,104.2357]
[1641278936200,2.5838573,167.86,167.74,104.7357]
[1641278936400,3.0838573,167.86,167.74,104.7357]
[1641278936602,3.3438573,167.86,167.74,133.74619904]
[1641278937700,4.6861573,167.86,167.74,133.74619904]